fUST/lending_fUST_20250227
["ID","MTS","AMOUNT","RATE_DAILY","PERIOD"]
[354685003,1740615051422,-1163.69,0.00046849,120]
[354685004,1740615051431,-500.0,0.00046849,120]
[354685005,1740615051441,-1097.82,0.00046849,120]
[354685006,1740615051451,-500.0,0.00046849,120]
[354685007,1740615051460,-2803.43,0.00046849,120]
[354685008,1740615051469,-500.0,0.00046849,120]
[354685009,1740615051479,-500.0,0.00046849,120]
[354685010,1740615051490,-500.0,0.00046849,120]
[354685011,1740615051500,-500.0,0.00046849,120]
[354685012,1740615051510,-500.0,0.00046849,120]
[354685013,1740615051519,-1084.01,0.00046849,120]
[354685014,1740615051528,-500.0,0.00046849,120]
[354685015,1740615051539,-8714.73,0.00046849,120]
[354685016,1740615051547,-584.7245525,0.00046849,120]
[354685017,1740615051556,-500.0,0.00046849,120]
[354685018,1740615051568,-500.0,0.00046849,120]
[354685019,1740615051578,-548.40654811,0.00046849,120]
[354685020,1740615051587,-500.0,0.00046849,120]
[354685021,1740615051596,-500.0,0.00046849,120]
[354685022,1740615051605,-500.0,0.00046849,120]
[354685023,1740615051615,-500.0,0.00046849,120]
[354685024,1740615051624,-3612.74,0.00046849,120]
[354685025,1740615051634,-500.0,0.00046849,120]
[354685026,1740615051643,-500.0,0.00046849,120]
[354685027,1740615051652,-500.0,0.00046849,120]
[354685028,1740615051662,-738.89,0.00046849,120]
[354685029,1740615051671,-500.0,0.00046849,120]
[354685030,1740615051681,-590.36,0.00046849,120]
[354685031,1740615051690,-500.0,0.00046849,120]
[354685032,1740615051700,-693.33,0.00046849,120]
[354685033,1740615051709,-4981.65,0.00046849,3]
[354685034,1740615051718,-500.0,0.00046849,120]
[354685035,1740615051727,-500.0,0.00046849,120]
[354685036,1740615051737,-500.0,0.00046849,120]
[354685037,1740615051746,-500.0,0.00046849,30]
[354685038,1740615051755,-500.0,0.00046849,120]
[354685039,1740615051763,-1181.19,0.00046849,120]
[354685040,1740615051772,-1146.18,0.00046849,120]
[354685041,1740615051781,-500.0,0.00046849,120]
[354685042,1740615051791,-500.0,0.00046849,120]
[354685043,1740615051800,-588.27,0.00046849,120]
[354685044,1740615051809,-1670.73,0.00046849,120]
[354685045,1740615051818,-1677.55,0.00046849,120]
[354685046,1740615051827,-1596.58,0.00046849,120]
[354685047,1740615051837,-500.0,0.00046849,120]
[354685048,1740615051846,-1540.89,0.00046849,120]
[354685049,1740615051855,-500.0,0.00046849,120]
[354685050,1740615051864,-785.7,0.00046849,120]
[354685051,1740615051873,-500.0,0.00046849,120]
[354685052,1740615051882,-500.0,0.00046849,120]
[354685053,1740615051891,-500.0,0.00046849,120]
[354685054,1740615051902,-537.17525945,0.00046849,120]
[354685055,1740615051911,-500.0,0.00046849,120]
[354685056,1740615051921,-500.0,0.00046849,120]
[354685057,1740615051930,-26683.27,0.00046849,120]
[354685058,1740615051939,-500.0,0.00046849,120]
[354685059,1740615051948,-500.0,0.00046849,120]
[354685060,1740615051957,-637.89269784,0.00046849,120]
[354685061,1740615051966,-4766.98,0.00046849,120]
[354685062,1740615051976,-1208.44,0.00046849,120]
[354685063,1740615051986,-500.0,0.00046849,120]
[354685064,1740615051995,-500.0,0.00046849,120]
[354685065,1740615052004,-500.0,0.00046849,120]
[354685066,1740615052013,-500.0,0.00046849,120]
[354685067,1740615052022,-524.8466742,0.00046849,120]
[354685068,1740615052031,-112192.28,0.00046849,7]
[354685069,1740615052040,-443.58807687,0.00046849,120]
[354685070,1740615052049,-500.0,0.00046849,120]
[354685071,1740615052058,-500.0,0.00046849,120]
[354685072,1740615052067,-7217.94,0.00046849,120]
[354685073,1740615052077,-1000.0,0.00046849,2]
[354685074,1740615052086,-500.0,0.00046849,120]
[354685075,1740615052095,-1904.3,0.00046849,120]
[354685076,1740615052104,-500.0,0.00046849,120]
[354685077,1740615052113,-500.0,0.00046849,120]
[354685078,1740615052122,-3137.06,0.00046849,120]
[354685079,1740615052131,-500.0,0.00046849,120]
[354685080,1740615052140,-500.0,0.00046849,120]
[354685081,1740615052149,-1065.04,0.00046849,120]
[354685082,1740615052158,-500.0,0.00046849,120]
[354685083,1740615052167,-500.0,0.00046849,120]
[354685084,1740615052176,-7156.05,0.00046849,120]
[354685085,1740615052185,-432.78175319,0.00046849,120]
[354685086,1740615052193,-851.49,0.00046849,120]
[354685087,1740615052202,-500.0,0.00046849,120]
[354685088,1740615052211,-302.43428716,0.00046849,120]
[354685089,1740615052220,-2000.3,0.00046849,120]
[354685090,1740615052229,-500.0,0.00046849,120]
[354685091,1740615052239,-4853.3,0.00046849,120]
[354685092,1740615052249,-500.0,0.00046849,120]
[354685093,1740615052258,-500.0,0.00046849,120]
[354685094,1740615052267,-502.33790019,0.00046849,120]
[354685095,1740615052278,-765.25,0.00046849,120]
[354685096,1740615052287,-927.15,0.00046849,120]
[354685097,1740615052296,-1755.88,0.00046849,120]
[354685098,1740615052305,-678.89,0.00046849,120]
[354685099,1740615052314,-500.0,0.00046849,120]
[354685100,1740615052323,-500.0,0.00046849,120]
[354685101,1740615052332,-1000.0,0.00046849,30]
[354685102,1740615052341,-500.0,0.00046849,120]
[354685103,1740615052351,-500.0,0.00046849,120]
[354685104,1740615052359,-500.0,0.00046849,120]
[354685105,1740615052368,-500.0,0.00046849,120]
[354685106,1740615052377,-500.0,0.00046849,120]
[354685107,1740615052386,-502.82804921,0.00046849,120]
[354685108,1740615052396,-500.0,0.00046849,120]
[354685109,1740615052406,-543.8,0.00046849,120]
[354685110,1740615052415,-500.0,0.00046849,120]
[354685111,1740615052425,-2299.11,0.00046849,120]
[354685112,1740615052434,-1746.84,0.00046849,120]
[354685113,1740615052446,-500.0,0.00046849,120]
[354685114,1740615052455,-500.0,0.00046849,120]
[354685115,1740615052464,-500.0,0.00046849,120]
[354685116,1740615052473,-591.9119507,0.00046849,120]
[354685117,1740615052483,-551.64,0.00046849,120]
[354685118,1740615052498,-722.24,0.00046849,120]
[354685119,1740615052507,-942.05,0.00046849,120]
[354685120,1740615052516,-500.0,0.00046849,120]
[354685121,1740615052526,-500.0,0.00046849,120]
[354685122,1740615052535,-500.0,0.00046849,120]
[354685123,1740615052544,-500.0,0.00046849,120]
[354685124,1740615052554,-610.04,0.00046849,120]
[354685125,1740615052564,-500.0,0.00046849,120]
[354685126,1740615052574,-500.0,0.00046849,120]
[354685127,1740615052584,-2261.32,0.00046849,120]
[354685128,1740615052593,-500.0,0.00046849,120]
[354685129,1740615052603,-1859.9,0.00046849,120]
[354685130,1740615052612,-500.0,0.00046849,21]
[354685131,1740615052622,-500.0,0.00046849,120]
[354685132,1740615052631,-500.0,0.00046849,120]
[354685133,1740615052655,-500.0,0.00046849,120]
[354685134,1740615052664,-617.15,0.00046849,120]
[354685135,1740615052674,-5250.88,0.00046849,120]
[354685136,1740615052683,-500.0,0.00046849,120]
[354685137,1740615052692,-500.0,0.00046849,120]
[354685138,1740615052701,-500.0,0.00046849,120]
[354685139,1740615052710,-500.0,0.00046849,120]
[354685140,1740615052719,-500.0,0.00046849,120]
[354685141,1740615052728,-500.0,0.00046849,120]
[354685142,1740615052738,-500.0,0.00046849,120]
[354685143,1740615052746,-500.0,0.00046849,120]
[354685144,1740615052755,-500.0,0.00046849,120]
[354685145,1740615052765,-500.0,0.00046849,120]
[354685146,1740615052774,-503.04419522,0.00046849,120]
[354685147,1740615052783,-500.0,0.00046849,120]
[354685148,1740615052792,-500.0,0.00046849,120]
[354685149,1740615052801,-500.0,0.00046849,120]
[354685150,1740615052924,-500.0,0.00046849,120]
[354685151,1740615052934,-500.0,0.00046849,120]
[354685152,1740615052943,-500.0,0.00046849,120]
[354685153,1740615052953,-506.93,0.00046849,120]
[354685154,1740615052962,-814.87,0.00046849,120]
[354685155,1740615052971,-500.0,0.00046849,120]
[354685156,1740615052980,-500.0,0.00046849,120]
[354685157,1740615052990,-500.0,0.00046849,120]
[354685158,1740615052999,-503.40879922,0.00046849,120]
[354685159,1740615053008,-500.0,0.00046849,120]
[354685160,1740615053017,-34014.5,0.00046849,6]
[354685161,1740615053026,-822.12,0.00046849,120]
[354685162,1740615053035,-500.0,0.00046849,120]
[354685163,1740615053044,-500.0,0.00046849,120]
[354685164,1740615053053,-500.0,0.00046849,120]
[354685165,1740615053062,-500.0,0.00046849,120]
[354685166,1740615053071,-500.0,0.00046849,120]
[354685167,1740615053080,-500.0,0.00046849,120]
[354685168,1740615053090,-500.0,0.00046849,120]
[354685169,1740615053099,-500.0,0.00046849,120]
[354685170,1740615053109,-1454.69,0.00046849,120]
[354685171,1740615053118,-500.0,0.00046849,120]
[354685172,1740615053128,-500.0,0.00046849,120]
[354685173,1740615053137,-500.0,0.00046849,120]
[354685174,1740615053146,-500.0,0.00046849,120]
[354685175,1740615053155,-500.0,0.00046849,120]
[354685176,1740615053164,-500.0,0.00046849,120]
[354685177,1740615053174,-500.0,0.00046849,120]
[354685178,1740615053183,-500.0,0.00046849,120]
[354685179,1740615053193,-500.0,0.00046849,120]
[354685180,1740615053202,-500.0,0.00046849,120]
[354685181,1740615053211,-500.0,0.00046849,120]
[354685182,1740615053220,-2433.83,0.00046849,120]
[354685183,1740615053229,-639.5,0.00046849,120]
[354685184,1740615053238,-500.0,0.00046849,120]
[354685185,1740615053247,-500.0,0.00046849,120]
[354685186,1740615053257,-10530.96,0.00046849,120]
[354685187,1740615053266,-500.0,0.00046849,120]
[354685188,1740615053275,-500.0,0.00046849,120]
[354685189,1740615053284,-500.0,0.00046849,120]
[354685190,1740615053294,-1828.48,0.00046849,120]
[354685191,1740615053303,-3667.52,0.00046849,120]
[354685192,1740615053312,-500.0,0.00046849,120]
[354685193,1740615053321,-500.0,0.00046849,120]
[354685194,1740615053331,-900.97,0.00046849,120]
[354685195,1740615053341,-297.98,0.00046849,120]
[354685196,1740615053350,-7982.28837579,0.0004685,3]
[354685197,1740615053359,-500.0,0.00046873,10]
[354685198,1740615053368,-275.50775202,0.00046873,3]
[354685199,1740615053377,-500.0,0.00046873,10]
[354685200,1740615053387,-500.0,0.00046873,10]
[354685201,1740615053396,-500.0,0.00046873,10]
[354685202,1740615053405,-500.0,0.00046873,10]
[354685203,1740615053415,-500.0,0.00046873,10]
[354685204,1740615053424,-500.0,0.00046873,10]
[354685205,1740615053433,-500.0,0.00046873,10]
[354685206,1740615053443,-500.0,0.00046873,10]
[354685207,1740615053453,-2484.32,0.000469,30]
[354685208,1740615053462,-10000.0,0.00046953,120]
[354685209,1740615053471,-1201.79468011,0.00047007,28]
[354685210,1740615053480,-39128.15981641,0.00047123,33]
[354685211,1740615053493,-3791.09149988,0.00047123,5]
[354685212,1740615053502,-500.0,0.00047123,120]
[354685213,1740615053511,-500.0,0.00047123,120]
[354685214,1740615053520,-500.0,0.00047123,120]
[354685215,1740615053530,-500.0,0.00047123,120]
[354685216,1740615053541,-500.0,0.00047123,120]
[354685217,1740615053550,-500.0,0.00047123,120]
[354685218,1740615053560,-500.0,0.00047123,120]
[354685219,1740615053572,-500.0,0.00047123,120]
[354685220,1740615053583,-312.648346,0.00047123,120]
[354685221,1740615053592,-168.66369259,0.00047123,120]
[354685222,1740615053602,-500.0,0.00047123,120]
[354685223,1740615053611,-500.0,0.00047123,120]
[354685224,1740615053620,-500.0,0.00047123,120]
[354685225,1740615053630,-379.56658301,0.00047123,120]
[354685226,1740615053639,-276.1717,0.00047123,120]
[354685227,1740615053648,-556.53,0.00047123,120]
[354685228,1740615053657,-500.0,0.00047123,120]
[354685229,1740615053667,-500.0,0.00047123,120]
[354685230,1740615053676,-500.0,0.00047123,120]
[354685231,1740615053685,-500.0,0.00047123,120]
[354685232,1740615053694,-500.0,0.00047123,120]
[354685233,1740615053703,-500.0,0.00047123,120]
[354685234,1740615053712,-684.48,0.00047123,120]
[354685235,1740615053722,-500.0,0.00047123,120]
[354685236,1740615053731,-696.96,0.00047123,120]
[354685237,1740615053741,-500.0,0.00047123,120]
[354685238,1740615053750,-597.66,0.00047123,120]
[354685239,1740615053759,-579.5,0.00047123,120]
[354685240,1740615053768,-500.0,0.00047123,120]
[354685241,1740615053778,-500.0,0.00047123,120]
[354685242,1740615053787,-1194.19,0.00047123,120]
[354685243,1740615053796,-500.96431291,0.00047123,120]
[354685244,1740615053805,-500.0,0.00047123,120]
[354685245,1740615053814,-522.55,0.00047123,120]
[354685246,1740615053823,-500.0,0.00047123,120]
[354685247,1740615053832,-500.0,0.00047123,120]
[354685248,1740615053841,-500.72884407,0.00047123,120]
[354685249,1740615053850,-500.0,0.00047123,120]
[354685250,1740615053859,-500.0,0.00047123,120]
[354685251,1740615053868,-500.0,0.00047123,120]
[354685252,1740615053877,-500.0,0.00047123,120]
[354685253,1740615053886,-500.0,0.00047123,120]
[354685254,1740615053895,-500.0,0.00047123,120]
[354685255,1740615053904,-500.0,0.00047123,120]
[354685256,1740615053913,-500.0,0.00047123,120]
[354685257,1740615053922,-276.79056918,0.00047123,120]
[354685258,1740615053931,-500.0,0.00047123,120]
[354685259,1740615053940,-500.0,0.00047123,120]
[354685260,1740615053949,-500.0,0.00047123,120]
[354685261,1740615053958,-500.0,0.00047123,120]
[354685262,1740615053968,-500.0,0.00047123,120]
[354685263,1740615053977,-535.91,0.00047123,120]
[354685264,1740615053988,-500.0,0.00047123,120]
[354685265,1740615053997,-500.0,0.00047123,120]
[354685266,1740615054006,-500.0,0.00047123,120]
[354685267,1740615054015,-198.29143575,0.00047123,120]
[354685268,1740615054024,-500.0,0.00047123,14]
[354685269,1740615054033,-1117.48,0.00047123,120]
[354685270,1740615054042,-607.66,0.00047123,120]
[354685271,1740615054051,-500.0,0.00047123,120]
[354685272,1740615054060,-500.0,0.00047123,120]
[354685273,1740615054069,-500.0,0.00047123,120]
[354685274,1740615054079,-500.0,0.00047123,120]
[354685275,1740615054088,-1000.0,0.00047123,120]
[354685276,1740615054097,-500.0,0.00047123,120]
[354685277,1740615054106,-500.0,0.00047123,120]
[354685278,1740615054114,-500.0,0.00047123,120]
[354685279,1740615054124,-500.0,0.00047123,30]
[354685280,1740615054133,-500.0,0.00047123,120]
[354685281,1740615054142,-500.0,0.00047123,120]
[354685282,1740615054151,-624.92639399,0.00047123,120]
[354685283,1740615054160,-500.0,0.00047123,120]
[354685284,1740615054169,-553.35952589,0.00047123,120]
[354685285,1740615054178,-503.29641154,0.00047123,120]
[354685286,1740615054188,-1285.36,0.00047123,120]
[354685287,1740615054197,-500.0,0.00047123,120]
[354685288,1740615054207,-500.0,0.00047123,120]
[354685289,1740615054216,-515.82,0.00047123,120]
[354685290,1740615054225,-500.0,0.00047123,120]
[354685291,1740615054235,-555.0770785,0.00047123,120]
[354685292,1740615054246,-500.0,0.00047123,120]
[354685293,1740615054255,-500.0,0.00047123,120]
[354685294,1740615054264,-501.59463154,0.00047123,120]
[354685295,1740615054275,-500.0,0.00047123,120]
[354685296,1740615054284,-564.89,0.00047123,120]
[354685297,1740615054293,-500.0,0.00047123,120]
[354685298,1740615054302,-500.0,0.00047123,120]
[354685299,1740615054311,-580.62,0.00047123,120]
[354685300,1740615054320,-500.0,0.00047123,120]
[354685301,1740615054329,-335.03568069,0.00047123,120]
[354685302,1740615054338,-542.5,0.00047123,120]
[354685303,1740615054347,-698.53,0.00047123,120]
[354685304,1740615054356,-625.66,0.00047123,120]
[354685305,1740615054366,-500.0,0.00047123,120]
[354685306,1740615054375,-500.0,0.00047123,120]
[354685307,1740615054384,-500.0,0.00047123,120]
[354685308,1740615054394,-2405.94,0.00047123,120]
[354685309,1740615054403,-500.0,0.00047123,120]
[354685310,1740615054412,-500.0,0.00047123,120]
[354685311,1740615054422,-500.0,0.00047123,120]
[354685312,1740615054431,-773.54,0.00047123,120]
[354685313,1740615054440,-500.0,0.00047123,120]
[354685314,1740615054450,-222.57688311,0.00047123,120]
[354685315,1740615054459,-500.0,0.00047123,120]
[354685316,1740615054468,-500.0,0.00047123,120]
[354685317,1740615054477,-694.73,0.00047123,120]
[354685318,1740615054486,-500.99320311,0.00047123,120]
[354685319,1740615054498,-500.0,0.00047123,120]
[354685320,1740615054507,-540.63249423,0.00047123,120]
[354685321,1740615054517,-500.0,0.00047123,120]
[354685322,1740615054526,-500.0,0.00047123,120]
[354685323,1740615054537,-500.0,0.00047123,120]
[354685324,1740615054546,-500.0,0.00047123,120]
[354685325,1740615054556,-500.0,0.00047123,120]
[354685326,1740615054566,-500.0,0.00047123,120]
[354685327,1740615054575,-500.0,0.00047123,120]
[354685328,1740615054584,-500.0,0.00047123,120]
[354685329,1740615054593,-500.0,0.00047123,120]
[354685330,1740615054603,-1595.74,0.00047123,120]
[354685331,1740615054611,-504.51,0.00047123,120]
[354685332,1740615054620,-500.0,0.00047123,120]
[354685333,1740615054630,-513.85,0.00047123,120]
[354685334,1740615054639,-2465.69,0.00047123,120]
[354685335,1740615054648,-336.39591312,0.00047123,120]
[354685336,1740615054657,-500.0,0.00047123,120]
[354685337,1740615054667,-478.81721782,0.00047123,120]
[354685338,1740615054676,-703.05,0.00047123,120]
[354685339,1740615054685,-1275.71,0.00047123,120]
[354685340,1740615054694,-500.0,0.00047123,120]
[354685341,1740615054703,-500.0,0.00047123,120]
[354685342,1740615054712,-648.48,0.00047123,120]
[354685343,1740615054721,-500.0,0.00047123,120]
[354685344,1740615054730,-351.37715922,0.00047123,120]
[354685345,1740615054739,-599.93,0.00047123,120]
[354685346,1740615054748,-1982.96,0.00047123,120]
[354685347,1740615054757,-500.0,0.00047123,120]
[354685348,1740615054766,-200.0,0.00047123,7]
[354685349,1740615054775,-2194.79,0.00047123,120]
[354685350,1740615054784,-500.0,0.00047123,120]
[354685351,1740615054793,-500.0,0.00047123,120]
[354685352,1740615054802,-500.0,0.00047123,120]
[354685353,1740615054811,-794.85,0.00047123,120]
[354685354,1740615054820,-500.0,0.00047123,120]
[354685355,1740615054831,-500.0,0.00047123,120]
[354685356,1740615054840,-500.0,0.00047123,120]
[354685357,1740615054848,-500.0,0.00047123,120]
[354685358,1740615054857,-1000.0,0.00047123,5]
[354685359,1740615054866,-500.0,0.00047123,120]
[354685360,1740615054875,-603.06,0.00047123,120]
[354685361,1740615054884,-501.50324051,0.00047123,120]
[354685362,1740615054893,-159.39285376,0.00047123,120]
[354685363,1740615054902,-500.0,0.00047123,120]
[354685364,1740615054911,-1093.74,0.00047123,120]
[354685365,1740615054921,-500.0,0.00047123,120]
[354685366,1740615054930,-500.0,0.00047123,120]
[354685367,1740615054939,-500.0,0.00047123,120]
[354685368,1740615054949,-500.0,0.00047123,120]
[354685369,1740615054958,-201.27793882,0.00047123,120]
[354685370,1740615054967,-500.0,0.00047123,120]
[354685371,1740615054976,-500.0,0.00047123,120]
[354685372,1740615054985,-500.0,0.00047123,120]
[354685373,1740615054995,-500.0,0.00047123,120]
[354685374,1740615055004,-500.0,0.00047123,120]
[354685375,1740615055014,-500.0,0.00047123,120]
[354685376,1740615055023,-500.0,0.00047123,120]
[354685377,1740615055141,-500.0,0.00047123,120]
[354685378,1740615055151,-500.0,0.00047123,120]
[354685379,1740615055161,-500.0,0.00047123,120]
[354685380,1740615055171,-2272.71,0.00047123,120]
[354685381,1740615055180,-501.96,0.00047123,120]
[354685382,1740615055189,-500.0,0.00047123,30]
[354685383,1740615055198,-500.0,0.00047123,120]
[354685384,1740615055208,-500.0,0.00047123,120]
[354685385,1740615055217,-500.0,0.00047123,120]
[354685386,1740615055227,-1481.29,0.00047123,120]
[354685387,1740615055236,-500.0,0.00047123,120]
[354685388,1740615055246,-500.0,0.00047123,120]
[354685389,1740615055255,-540.64,0.00047123,120]
[354685390,1740615055265,-549.17,0.00047123,120]
[354685391,1740615055274,-500.0,0.00047123,120]
[354685392,1740615055284,-580.45,0.00047123,120]
[354685393,1740615055293,-500.0,0.00047123,120]
[354685394,1740615055303,-1163.16,0.00047123,120]
[354685395,1740615055312,-599.79,0.00047123,120]
[354685396,1740615055321,-1342.65,0.00047123,120]
[354685397,1740615055331,-500.0,0.00047123,120]
[354685398,1740615055340,-500.0,0.00047123,120]
[354685399,1740615055349,-1904.83,0.00047123,120]
[354685400,1740615055358,-501.70147739,0.00047123,120]
[354685401,1740615055367,-500.0,0.00047123,120]
[354685402,1740615055377,-429.57794078,0.00047123,120]
[354685403,1740615055386,-503.0886522,0.00047123,120]
[354685404,1740615055395,-500.0,0.00047123,120]
[354685405,1740615055404,-1164.01,0.00047123,120]
[354685406,1740615055413,-500.0,0.00047123,120]
[354685407,1740615055423,-500.0,0.00047123,120]
[354685408,1740615055432,-500.0,0.00047123,120]
[354685409,1740615055441,-750.32,0.00047123,120]
[354685410,1740615055452,-500.0,0.00047123,120]
[354685411,1740615055461,-500.0,0.00047123,120]
[354685412,1740615055470,-500.0,0.00047123,120]
[354685413,1740615055479,-506.37998842,0.00047123,120]
[354685414,1740615055489,-764.22,0.00047123,120]
[354685415,1740615055502,-1234.58,0.00047123,120]
[354685416,1740615055511,-500.0,0.00047123,120]
[354685417,1740615055519,-1208.64,0.00047123,120]
[354685418,1740615055528,-571.78336135,0.00047123,120]
[354685419,1740615055538,-500.0,0.00047123,120]
[354685420,1740615055547,-500.0,0.00047123,120]
[354685421,1740615055556,-1071.49,0.00047123,120]
[354685422,1740615055566,-500.0,0.00047123,120]
[354685423,1740615055577,-745.52,0.00047123,120]
[354685424,1740615055586,-500.0,0.00047123,120]
[354685425,1740615055595,-640.68,0.00047123,120]
[354685426,1740615055604,-500.0,0.00047123,30]
[354685427,1740615055614,-500.0,0.00047123,120]
[354685428,1740615055624,-1180.99,0.00047123,120]
[354685429,1740615055633,-500.0,0.00047123,120]
[354685430,1740615055642,-743.06,0.00047123,120]
[354685431,1740615055651,-660.31,0.00047123,120]
[354685432,1740615055660,-500.0,0.00047123,120]
[354685433,1740615055669,-595.38,0.00047123,120]
[354685434,1740615055679,-1017.5,0.00047123,120]
[354685435,1740615055687,-500.0,0.00047123,120]
[354685436,1740615055696,-500.0,0.00047123,120]
[354685437,1740615055706,-500.0,0.00047123,120]
[354685438,1740615055714,-578.39,0.00047123,120]
[354685439,1740615055723,-500.0,0.00047123,120]
[354685440,1740615055732,-500.0,0.00047123,120]
[354685441,1740615055741,-500.0,0.00047123,120]
[354685442,1740615055750,-500.0,0.00047123,120]
[354685443,1740615055760,-689.24,0.00047123,120]
[354685444,1740615055769,-1041.27,0.00047123,120]
[354685445,1740615055778,-608.76,0.00047123,120]
[354685446,1740615055787,-1092.68,0.00047123,120]
[354685447,1740615055797,-2196.29,0.00047123,120]
[354685448,1740615055806,-500.0,0.00047123,120]
[354685449,1740615055815,-1648.24,0.00047123,120]
[354685450,1740615055824,-1321.26,0.00047123,120]
[354685451,1740615055834,-500.00000001,0.00047123,120]
[354685452,1740615055843,-500.0,0.00047123,120]
[354685453,1740615055851,-859.46,0.00047123,120]
[354685454,1740615055860,-640.91,0.00047123,120]
[354685455,1740615055869,-500.0,0.00047123,120]
[354685456,1740615055878,-500.0,0.00047123,120]
[354685457,1740615055887,-501.09396162,0.00047123,120]
[354685458,1740615055897,-500.0,0.00047123,15]
[354685459,1740615055905,-757.27,0.00047123,120]
[354685460,1740615055915,-1008.37,0.00047123,120]
[354685461,1740615055924,-500.0,0.00047123,120]
[354685462,1740615055933,-500.0,0.00047123,120]
[354685463,1740615055942,-500.0,0.00047123,120]
[354685464,1740615055951,-500.0,0.00047123,120]
[354685465,1740615055961,-541.99335899,0.00047123,120]
[354685466,1740615055971,-612.01130235,0.00047123,120]
[354685467,1740615055980,-500.0,0.00047123,120]
[354685468,1740615055989,-553.78,0.00047123,120]
[354685469,1740615055998,-500.0,0.00047123,120]
[354685470,1740615056007,-502.00862354,0.00047123,120]
[354685471,1740615056017,-500.0,0.00047123,120]
[354685472,1740615056026,-500.0,0.00047123,120]
[354685473,1740615056035,-500.0,0.00047123,120]
[354685474,1740615056044,-885.86,0.00047123,120]
[354685475,1740615056054,-500.0,0.00047123,120]
[354685476,1740615056063,-500.0,0.00047123,120]
[354685477,1740615056072,-500.0,0.00047123,120]
[354685478,1740615056081,-501.19,0.00047123,120]
[354685479,1740615056091,-500.0,0.00047123,120]
[354685480,1740615056100,-500.0,0.00047123,120]
[354685481,1740615056109,-500.0,0.00047123,120]
[354685482,1740615056119,-500.0,0.00047123,120]
[354685483,1740615056128,-880.62,0.00047123,120]
[354685484,1740615056138,-654.0,0.00047123,120]
[354685485,1740615056147,-500.0,0.00047123,120]
[354685486,1740615056156,-500.0,0.00047123,120]
[354685487,1740615056165,-703.22,0.00047123,120]
[354685488,1740615056175,-693.98,0.00047123,120]
[354685489,1740615056185,-500.0,0.00047123,120]
[354685490,1740615056194,-2545.27,0.00047123,120]
[354685491,1740615056204,-500.0,0.00047123,120]
[354685492,1740615056213,-500.0,0.00047123,120]
[354685493,1740615056223,-2073.58,0.00047123,120]
[354685494,1740615056232,-1256.51,0.00047123,120]
[354685495,1740615056242,-992.42,0.00047123,120]
[354685496,1740615056251,-500.0,0.00047123,120]
[354685497,1740615056261,-484.4099761,0.00047123,120]
[354685498,1740615056270,-557.19053306,0.00047123,120]
[354685499,1740615056280,-500.0,0.00047123,120]
[354685500,1740615056289,-500.0,0.00047123,120]
[354685501,1740615056298,-613.14,0.00047123,120]
[354685502,1740615056308,-500.0,0.00047123,120]